{"text_format":"1","workbook":"xlsx","n_sheets":9,"sheets":["LEESWIJZER","mob","resterende vragen & opmerkingen","WELKOM","INPUT","DATAVERWERKING","LISTS","Sheet1","RESULTAAT"],"not_rendered":{"charts":18,"images":4,"macros":1,"external_links":0,"defined_names":9,"comments":3,"pivot_tables":0},"unopened":[],"bounds":{"document_bytes":16777216,"sheet_cells":100000,"rows_first":2000,"rows_last":500,"rows_between":2000,"halvings":0,"cell_chars":16384,"cell_head_chars":4096},"cells_cut":0,"cells_raw":0,"read":"whole","date_system":"1900"}

{"sheet":"LEESWIJZER","index":0,"n_rows":6,"n_cols":2,"rows_kept":6,"cut":false,"hidden":true,"merged":[]}
[null,"Beïnvloedt keuzelijsten"]
[null,"Informatief"]
[null,"Heeft link met / stuurt vraag"]
[null,"Bepaalt de score"]
[]
["Onder kwestbare functies worden onder meer begrepen: scholen, rusthuizen, ziekenhuizen, kindercrèches, …"]

{"sheet":"mob","index":1,"n_rows":65,"n_cols":11,"rows_kept":65,"cut":false,"hidden":true,"merged":[]}
["Mobiliteitsprofiel",{"$f":"SUM(C6:C42)/COUNT(C6:C42)","v":2.75}]
[]
["algemene opmerking: onderstaande als u-vraag te formuleren! Zoals hieronder"]
["algemene opmerking: in vragenlijst moet er duiding zijn (met vraagteken-icoon)"]
[null,null,null,null,null,null,null,"basis voor layout",null,"resultaten"]
[null,null,2,null,"wat is een vrachtwagen? +3,5 ton? Misschien interactie met vraag rond type transport (vb: hoge frequente in combinatie +3,5 ton versterkt negatieve score)",null,null,"scores","onderverdeling",{"$f":"A1","v":"Mobiliteitsprofiel"},{"$f":"A44","v":"Bereikbaarheidsprofiel"}]
[null,null,null,null,"wat is een beweging? inkomende en uitgaande tellen als twee",null,null,0,20,{"$f":"B1/5","v":0.55000000000000004},{"$f":"B44/H12","v":0.6}]
[null,null,null,null,"bovengrenzen te bepalen",null,null,1,20,0.01,0.01]
[null,null,null,null,null,null,null,2,20,{"$f":"J12-J8-J7","v":0.43999999999999995},{"$f":"K12-K8-K7","v":0.39}]
[null,null,null,null,null,null,null,3,20,null,0]
[null,null,2,null,"bestelwagen",null,null,4,20,null,0]
[null,null,null,null,"lichte vracht ",null,null,5,100,1,1]
[null,null,null,null,"trekker oplegger"]
[]
[]
[null,null,3]
[]
[]
[]
[]
["gemiddeld aantal vrachtbewegingen tijdens een dag in het weekend of op feestdagen",null,4,"0 tot 1 beweging per dag","moeten wel kijken hoe het vroeger was? "]
[null,null,null,"1 tot 5 bewegingen per dag","vb. vroeger 50 per dag > nu 10 per dag > niet noodzakelijk slecht"]
[null,null,null,"5 tot 10 bewegingen per dag","= intensiteitsverandering"]
[null,null,null,"Méér dan 10 bewegingen per dag"]
[]
[null,null,2]
[]
[]
[null,null,4]
[]
[]
[]
[]
[]
[]
["U ontvangt bezoekers…",null,1]
[]
[]
["U ontvangt ",null,4]
[]
[]
[null,null,null,null,"nog meer?"]
[]
["Bereikbaarheidsprofiel",{"$f":"SUM(C46:C61)/COUNT(C46:C61)","v":3}]
[]
["De site ligt ",null,3,null,"misschien geen goede vraag…"]
[]
["Link met hogere wegennet?"]
["Hoe ver ligt het van een bovenlokale vrachtroute?"]
[]
["De site ligt",null,2,"in de kern van de gemeente"]
[null,null,null,"in de rand van de kern"]
[]
["De site ligt ",null,3,"aan een hoofdas"]
[null,null,null,"in de buurt van een hoofdas"]
[null,null,null,"enkele straten verwijderd van een hoofdas"]
[]
["Hoe belangrijk is de nabijheid van een bushalte of station",null,4,"Niet belangrijk"]
["Relevant?",null,null,"Matig belangrijk"]
[null,null,null,"Belangrijk"]
[null,null,null,"Zeer belangrijk"]
[]
[null,"breedte wegenis / school / brede bochten / moeilijke kruispunten / zwakke weggebruikers / woonomgeving / …",null,"Goed"]
[null,null,null,"Matig"]
[null,null,null,"Slecht"]

{"sheet":"resterende vragen & opmerkingen","index":2,"n_rows":31,"n_cols":2,"rows_kept":31,"cut":false,"hidden":true,"merged":[]}
["Vragen in verband met procedure en methode"]
["Lightversie? Getrapte benadering > bij gebrek aan informatie moet je een globale sleutelvraag moeten kunnen stellen?","Idee: vragen niet laten meetellen in score indien keuze voor \"onbekend\""]
["Voor wat zet je de tool in? Wanneer gebruiken? Je mag de tool niet \"oneigenlijk\" gebruiken.","Deliverable: Omschrijven in startpagina: logo / toelichting / disclaimer / … niet zinvol voor bepaalde duidelijke gevallen (cf. uitsluitingscriteria - vb. SEVESO)"]
["SHO: hoe gaat dit in zijn werk? WDG > wie rond de tafel / escalatie? / … plaats in discussie?","Lean-traject met WDG"]
["Wie vult in / hoe wordt gecommuniceerd naar ondernemer? SHO/SVE > met resultaten naar CBS gaan?","Gemeente vult in, vraagt info aan ondernemer. Escalatie naar CBS > te bepalen in proces flow lean traject"]
[]
["Criteriavoorstellen, weliswaar nog niet ingevoegd"]
["Te verwachten bouwhoogte (hoogste onderdeel) in relatie tot context (lager/hoger/even hoog)","afwachten hoe gebruiker reageert op gestelde vragen"]
["Doorwaadbaarheid van de site: te gedetailleerde vraag?","afwachten hoe gebruiker reageert op gestelde vragen"]
["Wordt er in shifts gewerkt? Aantal personeelsleden?","Evalueren indien score of niet: misschien meenemen als informatief element"]
["Wordt er in het weekend gewerkt?"]
["Track record? Antecedenten? ","Waren er klachten op de vorige locatie?"]
["quid vrachtbewegingen in het weekend?"]
["Herkomst personeel > lokale verankering?"]
[]
["Vragen in verband met inhoud en werking van het instrument"]
["Handleiding superbelangrijk!!! handleiding via hyperlink naar cel op ander blad en omgekeerd om terug te keren"]
["Begrip “nabijheid” nog te definiëren bij lokale klanten en leveranciers + "]
["\"Onbekend\" in dropdowns in te voeren? Quid puntenscores?","Indien \"onbekend\" > conditional formating orange > + geen bijdrage in score en gemiddelde"]
["resetknop om alles terug op kies te zetten?","wel resetknop met macro"]
["consistentie in vraagstelling: stelling of vraag?","voorlopig gemengd"]
["negatieve waardes in de score's mogelijk, zoals bijvoorbeeld bij \"visuele verbetering ten aanzien van vroeger\" = compensatie negatievere punten","niet negatief"]
["probleem met ongelijke scoreverdeling: ene vraag maximum score 3, andere vraag maximum score 4 > welke getallen op wijzerplaat?","telkens zelfde range (vb. 3) en onder te verdelen naargelang aantal keuzemogelijkheden"]
["gewichten: wijzerplaat moet zich automatisch aan de wijzerplaat kunnen aanpassen","mouw aan te passen > evt. via procentuele verdeling? + gewichten in woorden in plaats van cijfers"]
["Quid uitsluitingscriteria? Zoals Evolis","niet relevant"]
["ja/nee vragen moeten nog opgelost worden qua puntenscoring","unieke waarden: met spaties werken als truuk - joepiejee"]
["indien gewicht wordt toegekend in functie van eigen voorkeuren: quid opnieuw in te voeren indien nieuw dossier? Of zelfde excel? Quid reset?","cf. resetknop"]
["gewicht vertalen: belangrijk, minder belangrijk, belangrijker in plaats van getallen"]
[]
[]
["definities definiëren"]

{"sheet":"WELKOM","index":3,"n_rows":30,"n_cols":4,"rows_kept":30,"cut":false,"hidden":false,"merged":[]}
[]
[]
[]
[]
[]
[]
[]
[]
[]
[]
[]
[]
[]
[]
[]
[]
[]
[]
[]
[]
[]
[null,"WAT",null,"Het afwegingsinstrument heeft als doel de interne afstemming binnen de gemeente tussen diensten stedenbouw, milieu en economie in het kader van een vestigingsaanvraag / uitbreidingsvraag van een bedrijf in de kern te bevorderen."]
[null,null,null,"Dergelijk afwegingsinstrument laat de gemeente toe om ruimtevragen, in plaats van fragmentair, in al zijn aspecten af te wegen. Het instrument faciliteert het overleg tussen de diensten en onderbouwt de uiteindelijke beslissing. Het afwegingsinstrument wordt immers ingevuld met de input vanuit de verschillende diensten en laat toe om interne discussies te verzakelijken en integraal te voeren op basis van rationele argumenten."]
[null,null,null,"Het afwegingsinstrument bevat een set van verschillende vragen verdeeld over de 5 gedefinieerde kenmerken van het verweefbaarheids- en verwevingsprofiel: ruimte, milieu, mobiliteit, sociaal en economie. Via deze vragen worden de kenmerken van een activiteit ‘gemeten’. Per kenmerk en/of (bv. wordt een score bepaald. Op basis daarvan kan worden geconcludeerd of herverweving mogelijk is en onder welke voorwaarden."]
[]
[null,"HOE",null,"1.  vul de antwoorden in bij de rode vlakken."]
[null,null,null,"2. pas eventueel de weging aan (minder belangrijk, belangrijk, zeer belangrijk)."]
[null,null,null,"3. de antwoorden en de wegingen kunnen via de knoppen worden gereset."]
[null,null,null,"4. door het invullen van de antwoorden worden de scores aangepast"]
[null,null,null,"5. via 'resultaten' worden alle scores overzichtelijk gevisualiseerd"]

{"sheet":"INPUT","index":4,"n_rows":96,"n_cols":5,"rows_kept":96,"cut":false,"hidden":false,"merged":[]}
[]
[]
[]
[]
[]
[]
[]
[]
[]
[]
[]
[]
[]
[]
[]
[null,"BASISGEGEVENS"]
[null,null,"Naam dossierbeheerder"]
[null,null,"Namen betrokken personen"]
[null,null,"Datum opstart dossier"]
[null,"VAN DE LOCATIE"]
[null,null,"Naam"]
[null,null,"Adres"]
[null,null,"Huidige eigenaar"]
[null,"VAN DE GEÏNTERESSEERDE PARTIJ"]
[null,null,"Naam"]
[null,null,"Adres"]
[null,null,"Contactpersoon"]
[null,null,"Telefoon"]
[null,null,"Email"]
[]
[null,"RUIMTELIJK KENMERKEN"]
[null,"VAN DE LOCATIE"]
[null,null,"Zijn er kwetsbare functies binnen een straal van 200 meter rond de site?","belangrijk","kies"]
[null,null,"Welke bestemming heeft de site?","belangrijk","kies"]
[null,null,"Ligt de site in een stad of een gemeente?",null,"kies"]
[null,null,"In welk type buurt ligt de site?","belangrijk","kies"]
[null,null,"Hoe groot is de site?","belangrijk","kies"]
[null,null,"Wat is de actuele graad van bebouwde oppervlakte op de site?",null,"kies"]
[null,null,"Is er onroerend erfgoed op de site aanwezig?",null,"kies"]
[null,null,"In welke staat is de site vandaag?",null,"kies"]
[null,null,"Is er op de site voldoende ruimte om te bufferen?","belangrijk","kies"]
[null,"VAN DE GEPLANDE ACTIVITEIT"]
[null,null,"Wat is de visuele impact van het project op de omgeving?","belangrijk","kies"]
[null,null,"In welke mate moet de bestaande toestand aan de geplande activiteiten worden aangepast?","belangrijk","kies"]
[null,null,"Vereisen de geplande activiteiten opslag in open lucht?","belangrijk","kies"]
[null,null,"Kan het aanwezige erfgoed op de site behouden worden?","belangrijk","kies"]
[]
[null,"SOCIALE KENMERKEN"]
[null,"VAN DE GEPLANDE ACTIVITEIT"]
[null,null,"Draagt het bedrijf bij tot de uitstraling van de gemeente?","belangrijk","kies"]
[null,null,"Heeft het bedrijf een publieksfunctie?","belangrijk","kies"]
[null,null,"Is een gedeeld gebruik van delen van de bedrijfssite mogelijk en bespreekbaar?","belangrijk","kies"]
[null,null,"Komt de zaakvoerder of een  conciërge bij het bedrijf wonen?","belangrijk","kies"]
[]
[null,"ECONOMISCHE KENMERKEN"]
[null,"VAN DE GEPLANDE ACTIVITEIT"]
[null,null,"Tot welke economische sector behoort het bedrijf?",null,"kies"]
[null,null,"Is de belangrijkste doelgroep van het bedrijf particulieren (B2C) of professionelen (B2B)",null,"kies"]
[null,null,"Laat de onderneming zich binnen een regionaal clusterbeleid inschrijven?","belangrijk","kies"]
[null,null,"In welke mate hangt het bedrijf af van lokale (dus nabije) leveranciers?","belangrijk","kies"]
[null,null,"In welke mate hangt het bedrijf af van lokale (dus nabije) klanten? ","belangrijk","kies"]
[null,null,"Welke betekenis hebben de geplande investeringen van het bedrijf?","belangrijk","kies"]
[null,null,"Waar is het bedrijf momenteel gevestigd?","belangrijk","kies"]
[null,null,"Hoeveel (bijkomende) tewerkstelling brengt de investering met zich mee?","belangrijk","kies"]
[null,null,"Hoeveel groeimarge heeft de investering binnen de contouren van het terrein op basis van actuele groeicijfers?","belangrijk","kies"]
[null,null,"Wat betekent de investering op vlak van gemeentelijke inkomsten?","belangrijk","kies"]
[null,null,"Zijn er investeringen nodig vanuit de stad of gemeente om de investering te faciliteren?","belangrijk","kies"]
[null,null,"Hoe groot is de kans op schade aan en/of slijtage van het publieke domein tijdens de exploitatie","belangrijk","kies"]
[]
[null,"KENMERKEN LEEFMILIEU"]
[null,"VAN DE GEPLANDE ACTIVITEIT"]
[null,null,"Vereisen de geplande activiteiten een milieuvergunning?","belangrijk","kies"]
[null,null,"Vereisen de geplande activiteiten de opslag of behandeling van gevaarlijke stoffen?","belangrijk","kies"]
[null,null,"Veroorzaken de geplande activiteiten luchtverontreiniging?","belangrijk","kies"]
[null,null,"Veroorzaken de geplande activiteiten stofhinder?","belangrijk","kies"]
[null,null,"Veroorzaken de geplande activiteiten geurhinder?","belangrijk","kies"]
[null,null,"Veroorzaken de geplande activiteiten lichthinder?","belangrijk","kies"]
[null,null,"Veroorzaken de geplande activiteiten geluidsoverlast?","belangrijk","kies"]
[null,null,"Veroorzaken de geplande activiteiten trillingen?","belangrijk","kies"]
[null,null,"Vereisen de geplande activiteiten meer verharde oppervlakte dan vandaag reeds op de site aanwezig is?","belangrijk","kies"]
[]
[null,"MOBILITEITSKENMERKEN"]
[null,"VAN DE LOCATIE"]
[null,null,"Hoe ver ligt de site van het hogere wegennet?","belangrijk","kies"]
[null,null,"Wat is de kwaliteit van het ontsluitingstraject?","belangrijk","kies"]
[null,"VAN DE GEPLANDE ACTIVITEIT"]
[null,null,"Met welk type vrachtvervoer worden goederen hoofdzakelijk aan- en afgevoerd?","belangrijk","kies"]
[null,null,"Hoeveel vrachtbewegingen zijn er binnen de courante werkuren (van 9 tot 16 uur)?","belangrijk","kies"]
[null,null,"Hoeveel vrachtbewegingen zijn er 's morgens en 's avonds (van 6 tot 9 en van 16 tot 20 uur, samengeteld)?","belangrijk","kies"]
[null,null,"Hoeveel vrachtbewegingen zijn er 's nachts (van 20 tot 6 uur)","belangrijk","kies"]
[null,null,"In welke mate zijn de vrachtbewegingen gespreid in tijd?","belangrijk","kies"]
[null,null,"Waar gebeurt het laden en lossen?","belangrijk","kies"]
[null,null,"Wanneer gebeurt het laden en lossen?","belangrijk","kies"]
[null,null,"Zullen de medewerkers op het eigen bedrijfsterrein kunnen parkeren?","belangrijk","kies"]
[null,null,"Wordt er bij de geplande activiteiten in shifts gewerkt?","belangrijk","kies"]
[null,null,"Hoeveel bezoekers ontvangt heb bedrijf?","belangrijk","kies"]

{"sheet":"DATAVERWERKING","index":5,"n_rows":70,"n_cols":17,"rows_kept":70,"cut":false,"hidden":true,"merged":[[5,11,18,11],[22,11,25,11],[29,11,40,11],[44,11,52,11],[56,11,68,11]]}
[]
[]
[]
[null,{"$f":"INPUT!B31","v":"RUIMTELIJK KENMERKEN"}]
[null,{"$f":"INPUT!B32","v":"VAN DE LOCATIE"},null,null,null,null,null,"score","belang","totaal"]
[null,null,{"$f":"INPUT!#REF!","v":{"$error":"#REF!"}},{"$f":"INPUT!C33","v":"Zijn er kwetsbare functies binnen een straal van 200 meter rond de site?"},{"$f":"INPUT!D33","v":"belangrijk"},{"$f":"INPUT!E33","v":"kies"},null,{"$f":"VLOOKUP(F6,Range_vlookup,3,FALSE)","v":0},{"$f":"IF(H6=\"x\",\"x\",VLOOKUP(E6,Range_vlookup,3,FALSE))","v":1},{"$f":"IF(H6=\"x\",\"x\",H6*I6)","v":0},null,{"$f":"J20*(F20/I20)/F20","v":0},null,null,"schaal","verdeling","score"]
[null,null,{"$f":"INPUT!#REF!","v":{"$error":"#REF!"}},{"$f":"INPUT!C34","v":"Welke bestemming heeft de site?"},{"$f":"INPUT!D34","v":"belangrijk"},{"$f":"INPUT!E34","v":"kies"},null,{"$f":"VLOOKUP(F7,Range_vlookup,3,FALSE)","v":0},{"$f":"IF(H7=\"x\",\"x\",VLOOKUP(E7,Range_vlookup,3,FALSE))","v":1},{"$f":"IF(H7=\"x\",\"x\",H7*I7)","v":0},null,null,null,null,0,20,{"$f":"L6/5","v":0}]
[null,null,{"$f":"INPUT!#REF!","v":{"$error":"#REF!"}},{"$f":"INPUT!C35","v":"Ligt de site in een stad of een gemeente?"},{"$f":"INPUT!D35","v":0},{"$f":"INPUT!E35","v":"kies"},null,null,null,null,null,null,null,null,1,20,0.01]
[null,null,{"$f":"INPUT!#REF!","v":{"$error":"#REF!"}},{"$f":"INPUT!C36","v":"In welk type buurt ligt de site?"},{"$f":"INPUT!D36","v":"belangrijk"},{"$f":"INPUT!E36","v":"kies"},null,{"$f":"VLOOKUP(F9,Range_vlookup,3,FALSE)","v":0},{"$f":"IF(H9=\"x\",\"x\",VLOOKUP(E9,Range_vlookup,3,FALSE))","v":1},0,null,null,null,null,2,20,{"$f":"Q12-Q8-Q7","v":0.99}]
[null,null,{"$f":"INPUT!#REF!","v":{"$error":"#REF!"}},{"$f":"INPUT!C37","v":"Hoe groot is de site?"},{"$f":"INPUT!D37","v":"belangrijk"},{"$f":"INPUT!E37","v":"kies"},null,{"$f":"VLOOKUP(F10,Range_vlookup,3,FALSE)","v":0},{"$f":"IF(H10=\"x\",\"x\",VLOOKUP(E10,Range_vlookup,3,FALSE))","v":1},0,null,null,null,null,3,20,0]
[null,null,{"$f":"INPUT!#REF!","v":{"$error":"#REF!"}},{"$f":"INPUT!C38","v":"Wat is de actuele graad van bebouwde oppervlakte op de site?"},null,{"$f":"INPUT!E38","v":"kies"},null,null,null,null,null,null,null,null,4,20,0]
[null,null,{"$f":"INPUT!#REF!","v":{"$error":"#REF!"}},{"$f":"INPUT!C39","v":"Is er onroerend erfgoed op de site aanwezig?"},null,{"$f":"INPUT!E39","v":"kies"},null,null,null,null,null,null,null,null,5,100,1]
[null,null,{"$f":"INPUT!#REF!","v":{"$error":"#REF!"}},{"$f":"INPUT!C40","v":"In welke staat is de site vandaag?"},null,{"$f":"INPUT!E40","v":"kies"}]
[null,null,{"$f":"INPUT!#REF!","v":{"$error":"#REF!"}},{"$f":"INPUT!C41","v":"Is er op de site voldoende ruimte om te bufferen?"},{"$f":"INPUT!D41","v":"belangrijk"},{"$f":"INPUT!E41","v":"kies"},null,{"$f":"VLOOKUP(F14,Range_vlookup,3,FALSE)","v":0},{"$f":"IF(H14=\"x\",\"x\",VLOOKUP(E14,Range_vlookup,3,FALSE))","v":1},0]
[null,{"$f":"INPUT!B42","v":"VAN DE GEPLANDE ACTIVITEIT"}]
[null,null,{"$f":"INPUT!#REF!","v":{"$error":"#REF!"}},{"$f":"INPUT!C43","v":"Wat is de visuele impact van het project op de omgeving?"},{"$f":"INPUT!D43","v":"belangrijk"},{"$f":"INPUT!E43","v":"kies"},null,{"$f":"VLOOKUP(F16,Range_vlookup,3,FALSE)","v":0},{"$f":"IF(H16=\"x\",\"x\",VLOOKUP(E16,Range_vlookup,3,FALSE))","v":1},0]
[null,null,{"$f":"INPUT!#REF!","v":{"$error":"#REF!"}},{"$f":"INPUT!C44","v":"In welke mate moet de bestaande toestand aan de geplande activiteiten worden aangepast?"},{"$f":"INPUT!D44","v":"belangrijk"},{"$f":"INPUT!E44","v":"kies"},null,{"$f":"VLOOKUP(F17,Range_vlookup,3,FALSE)","v":0},{"$f":"IF(H17=\"x\",\"x\",VLOOKUP(E17,Range_vlookup,3,FALSE))","v":1},0]
[null,null,{"$f":"INPUT!#REF!","v":{"$error":"#REF!"}},{"$f":"INPUT!C45","v":"Vereisen de geplande activiteiten opslag in open lucht?"},{"$f":"INPUT!D45","v":"belangrijk"},{"$f":"INPUT!E45","v":"kies"},null,{"$f":"VLOOKUP(F18,Range_vlookup,3,FALSE)","v":0},{"$f":"IF(H18=\"x\",\"x\",VLOOKUP(E18,Range_vlookup,3,FALSE))","v":1},0]
[null,null,{"$f":"INPUT!#REF!","v":{"$error":"#REF!"}},{"$f":"INPUT!C46","v":"Kan het aanwezige erfgoed op de site behouden worden?"},{"$f":"INPUT!D46","v":"belangrijk"},{"$f":"INPUT!E46","v":"kies"},null,{"$f":"VLOOKUP(F19,Range_vlookup,3,FALSE)","v":0},{"$f":"IF(H19=\"x\",\"x\",VLOOKUP(E19,Range_vlookup,3,FALSE))","v":1},0]
[null,null,null,null,null,{"$f":"IF(F12=LISTS!A45,9,8)","v":8},null,{"$f":"SUM(H6:H19)","v":0},{"$f":"SUM(I6:I19)","v":9},{"$f":"SUM(J6:J19)","v":0}]
[null,{"$f":"INPUT!B48","v":"SOCIALE KENMERKEN"}]
[null,{"$f":"INPUT!B49","v":"VAN DE GEPLANDE ACTIVITEIT"},null,null,null,null,null,null,null,null,null,null,null,null,"schaal","verdeling","score"]
[null,null,{"$f":"INPUT!#REF!","v":{"$error":"#REF!"}},{"$f":"INPUT!C50","v":"Draagt het bedrijf bij tot de uitstraling van de gemeente?"},{"$f":"INPUT!D50","v":"belangrijk"},{"$f":"INPUT!E50","v":"kies"},null,{"$f":"VLOOKUP(F23,Range_vlookup,3,FALSE)","v":0},{"$f":"IF(H23=\"x\",\"x\",VLOOKUP(E23,Range_vlookup,3,FALSE))","v":1},{"$f":"IF(H23=\"x\",\"x\",H23*I23)","v":0},null,{"$f":"J27/I27","v":0},null,null,0,20,{"$f":"L23/5","v":0}]
[null,null,{"$f":"INPUT!#REF!","v":{"$error":"#REF!"}},{"$f":"INPUT!C51","v":"Heeft het bedrijf een publieksfunctie?"},{"$f":"INPUT!D51","v":"belangrijk"},{"$f":"INPUT!E51","v":"kies"},null,{"$f":"VLOOKUP(F24,Range_vlookup,3,FALSE)","v":0},{"$f":"IF(H24=\"x\",\"x\",VLOOKUP(E24,Range_vlookup,3,FALSE))","v":1},0,null,null,null,null,1,20,0.01]
[null,null,{"$f":"INPUT!#REF!","v":{"$error":"#REF!"}},{"$f":"INPUT!C52","v":"Is een gedeeld gebruik van delen van de bedrijfssite mogelijk en bespreekbaar?"},{"$f":"INPUT!D52","v":"belangrijk"},{"$f":"INPUT!E52","v":"kies"},null,{"$f":"VLOOKUP(F25,Range_vlookup,3,FALSE)","v":0},{"$f":"IF(H25=\"x\",\"x\",VLOOKUP(E25,Range_vlookup,3,FALSE))","v":1},0,null,null,null,null,2,20,{"$f":"Q28-Q24-Q23","v":0.99}]
[null,null,{"$f":"INPUT!#REF!","v":{"$error":"#REF!"}},{"$f":"INPUT!C53","v":"Komt de zaakvoerder of een  conciërge bij het bedrijf wonen?"},{"$f":"INPUT!D53","v":"belangrijk"},{"$f":"INPUT!E53","v":"kies"},null,{"$f":"VLOOKUP(F26,Range_vlookup,3,FALSE)","v":0},{"$f":"IF(H26=\"x\",\"x\",VLOOKUP(E26,Range_vlookup,3,FALSE))","v":1},0,null,null,null,null,3,20,0]
[null,null,null,null,null,{"$f":"IF(F19=LISTS!A52,9,8)","v":8},null,{"$f":"SUM(H23:H26)","v":0},{"$f":"SUM(I23:I26)","v":4},0,null,null,null,null,4,20,0]
[null,{"$f":"INPUT!B55","v":"ECONOMISCHE KENMERKEN"},null,null,null,null,null,null,null,null,null,null,null,null,5,100,1]
[null,{"$f":"INPUT!B56","v":"VAN DE GEPLANDE ACTIVITEIT"}]
[null,null,{"$f":"INPUT!#REF!","v":{"$error":"#REF!"}},{"$f":"INPUT!C57","v":"Tot welke economische sector behoort het bedrijf?"},null,{"$f":"INPUT!E57","v":"kies"},null,null,null,null,null,{"$f":"J42/I42","v":0}]
[null,null,{"$f":"INPUT!#REF!","v":{"$error":"#REF!"}},{"$f":"INPUT!C58","v":"Is de belangrijkste doelgroep van het bedrijf particulieren (B2C) of professionelen (B2B)"},null,{"$f":"INPUT!E58","v":"kies"}]
[null,null,{"$f":"INPUT!#REF!","v":{"$error":"#REF!"}},{"$f":"INPUT!C59","v":"Laat de onderneming zich binnen een regionaal clusterbeleid inschrijven?"},{"$f":"INPUT!D59","v":"belangrijk"},{"$f":"INPUT!E59","v":"kies"},null,{"$f":"VLOOKUP(F32,Range_vlookup,3,FALSE)","v":0},{"$f":"IF(H32=\"x\",\"x\",VLOOKUP(E32,Range_vlookup,3,FALSE))","v":1},{"$f":"IF(H32=\"x\",\"x\",H32*I32)","v":0},null,null,null,null,"schaal","verdeling","score"]
[null,null,{"$f":"INPUT!#REF!","v":{"$error":"#REF!"}},{"$f":"INPUT!C60","v":"In welke mate hangt het bedrijf af van lokale (dus nabije) leveranciers?"},{"$f":"INPUT!D60","v":"belangrijk"},{"$f":"INPUT!E60","v":"kies"},null,0,1,0,null,null,null,null,0,20,{"$f":"L30/5","v":0}]
[null,null,{"$f":"INPUT!#REF!","v":{"$error":"#REF!"}},{"$f":"INPUT!C61","v":"In welke mate hangt het bedrijf af van lokale (dus nabije) klanten? "},{"$f":"INPUT!D61","v":"belangrijk"},{"$f":"INPUT!E61","v":"kies"},null,0,1,0,null,null,null,null,1,20,0.01]
[null,null,{"$f":"INPUT!#REF!","v":{"$error":"#REF!"}},{"$f":"INPUT!C62","v":"Welke betekenis hebben de geplande investeringen van het bedrijf?"},{"$f":"INPUT!D62","v":"belangrijk"},{"$f":"INPUT!E62","v":"kies"},null,0,1,0,null,null,null,null,2,20,{"$f":"Q38-Q34-Q33","v":0.99}]
[null,null,{"$f":"INPUT!#REF!","v":{"$error":"#REF!"}},{"$f":"INPUT!C63","v":"Waar is het bedrijf momenteel gevestigd?"},{"$f":"INPUT!D63","v":"belangrijk"},{"$f":"INPUT!E63","v":"kies"},null,0,1,0,null,null,null,null,3,20,0]
[null,null,{"$f":"INPUT!#REF!","v":{"$error":"#REF!"}},{"$f":"INPUT!C64","v":"Hoeveel (bijkomende) tewerkstelling brengt de investering met zich mee?"},{"$f":"INPUT!D64","v":"belangrijk"},{"$f":"INPUT!E64","v":"kies"},null,0,1,0,null,null,null,null,4,20,0]
[null,null,{"$f":"INPUT!#REF!","v":{"$error":"#REF!"}},{"$f":"INPUT!C65","v":"Hoeveel groeimarge heeft de investering binnen de contouren van het terrein op basis van actuele groeicijfers?"},{"$f":"INPUT!D65","v":"belangrijk"},{"$f":"INPUT!E65","v":"kies"},null,0,1,0,null,null,null,null,5,100,1]
[null,null,{"$f":"INPUT!#REF!","v":{"$error":"#REF!"}},{"$f":"INPUT!C66","v":"Wat betekent de investering op vlak van gemeentelijke inkomsten?"},{"$f":"INPUT!D66","v":"belangrijk"},{"$f":"INPUT!E66","v":"kies"},null,0,1,0]
[null,null,{"$f":"INPUT!#REF!","v":{"$error":"#REF!"}},{"$f":"INPUT!C67","v":"Zijn er investeringen nodig vanuit de stad of gemeente om de investering te faciliteren?"},{"$f":"INPUT!D67","v":"belangrijk"},{"$f":"INPUT!E67","v":"kies"},null,0,1,0]
[null,null,{"$f":"INPUT!#REF!","v":{"$error":"#REF!"}},{"$f":"INPUT!C68","v":"Hoe groot is de kans op schade aan en/of slijtage van het publieke domein tijdens de exploitatie"},{"$f":"INPUT!D68","v":"belangrijk"},{"$f":"INPUT!E68","v":"kies"},null,0,1,0]
[null,null,null,null,null,null,null,{"$f":"SUM(H32:H41)","v":0},{"$f":"SUM(I32:I41)","v":10},0]
[null,{"$f":"INPUT!B70","v":"KENMERKEN LEEFMILIEU"}]
[null,{"$f":"INPUT!B71","v":"VAN DE GEPLANDE ACTIVITEIT"}]
[null,null,{"$f":"INPUT!#REF!","v":{"$error":"#REF!"}},{"$f":"INPUT!C72","v":"Vereisen de geplande activiteiten een milieuvergunning?"},{"$f":"INPUT!D72","v":"belangrijk"},{"$f":"INPUT!E72","v":"kies"},null,{"$f":"VLOOKUP(F45,Range_vlookup,3,FALSE)","v":0},{"$f":"IF(H45=\"x\",\"x\",VLOOKUP(E45,Range_vlookup,3,FALSE))","v":1},{"$f":"IF(H45=\"x\",\"x\",H45*I45)","v":0},null,{"$f":"J54/I54","v":0}]
[null,null,{"$f":"INPUT!#REF!","v":{"$error":"#REF!"}},{"$f":"INPUT!C73","v":"Vereisen de geplande activiteiten de opslag of behandeling van gevaarlijke stoffen?"},{"$f":"INPUT!D73","v":"belangrijk"},{"$f":"INPUT!E73","v":"kies"},null,0,1,0,null,null,null,null,"schaal","verdeling","score"]
[null,null,{"$f":"INPUT!#REF!","v":{"$error":"#REF!"}},{"$f":"INPUT!C74","v":"Veroorzaken de geplande activiteiten luchtverontreiniging?"},{"$f":"INPUT!D74","v":"belangrijk"},{"$f":"INPUT!E74","v":"kies"},null,0,1,0,null,null,null,null,0,20,{"$f":"L45/5","v":0}]
[null,null,{"$f":"INPUT!#REF!","v":{"$error":"#REF!"}},{"$f":"INPUT!C75","v":"Veroorzaken de geplande activiteiten stofhinder?"},{"$f":"INPUT!D75","v":"belangrijk"},{"$f":"INPUT!E75","v":"kies"},null,0,1,0,null,null,null,null,1,20,0.01]
[null,null,{"$f":"INPUT!#REF!","v":{"$error":"#REF!"}},{"$f":"INPUT!C76","v":"Veroorzaken de geplande activiteiten geurhinder?"},{"$f":"INPUT!D76","v":"belangrijk"},{"$f":"INPUT!E76","v":"kies"},null,0,1,0,null,null,null,null,2,20,{"$f":"Q52-Q48-Q47","v":0.99}]
[null,null,{"$f":"INPUT!#REF!","v":{"$error":"#REF!"}},{"$f":"INPUT!C77","v":"Veroorzaken de geplande activiteiten lichthinder?"},{"$f":"INPUT!D77","v":"belangrijk"},{"$f":"INPUT!E77","v":"kies"},null,0,1,0,null,null,null,null,3,20,0]
[null,null,{"$f":"INPUT!#REF!","v":{"$error":"#REF!"}},{"$f":"INPUT!C78","v":"Veroorzaken de geplande activiteiten geluidsoverlast?"},{"$f":"INPUT!D78","v":"belangrijk"},{"$f":"INPUT!E78","v":"kies"},null,0,1,0,null,null,null,null,4,20,0]
[null,null,{"$f":"INPUT!#REF!","v":{"$error":"#REF!"}},{"$f":"INPUT!C79","v":"Veroorzaken de geplande activiteiten trillingen?"},{"$f":"INPUT!D79","v":"belangrijk"},{"$f":"INPUT!E79","v":"kies"},null,0,1,0,null,null,null,null,5,100,1]
[null,null,{"$f":"INPUT!#REF!","v":{"$error":"#REF!"}},{"$f":"INPUT!C80","v":"Vereisen de geplande activiteiten meer verharde oppervlakte dan vandaag reeds op de site aanwezig is?"},{"$f":"INPUT!D80","v":"belangrijk"},{"$f":"INPUT!E80","v":"kies"},null,0,1,0]
[null,null,null,null,null,null,null,{"$f":"SUM(H45:H53)","v":0},{"$f":"SUM(I45:I53)","v":9},{"$f":"SUM(J45:J53)","v":0}]
[null,{"$f":"INPUT!B82","v":"MOBILITEITSKENMERKEN"}]
[null,{"$f":"INPUT!B83","v":"VAN DE LOCATIE"}]
[null,null,{"$f":"INPUT!#REF!","v":{"$error":"#REF!"}},{"$f":"INPUT!C84","v":"Hoe ver ligt de site van het hogere wegennet?"},{"$f":"INPUT!D84","v":"belangrijk"},{"$f":"INPUT!E84","v":"kies"},null,{"$f":"VLOOKUP(F57,Range_vlookup,3,FALSE)","v":0},{"$f":"IF(H57=\"x\",\"x\",VLOOKUP(E57,Range_vlookup,3,FALSE))","v":1},{"$f":"IF(H57=\"x\",\"x\",H57*I57)","v":0},null,{"$f":"J70/I70","v":0},null,null,"schaal","verdeling","score"]
[null,null,{"$f":"INPUT!#REF!","v":{"$error":"#REF!"}},{"$f":"INPUT!C85","v":"Wat is de kwaliteit van het ontsluitingstraject?"},{"$f":"INPUT!D85","v":"belangrijk"},{"$f":"INPUT!E85","v":"kies"},null,{"$f":"VLOOKUP(F58,Range_vlookup,3,FALSE)","v":0},{"$f":"IF(H58=\"x\",\"x\",VLOOKUP(E58,Range_vlookup,3,FALSE))","v":1},0,null,null,null,null,0,20,{"$f":"L57/5","v":0}]
[null,{"$f":"INPUT!B86","v":"VAN DE GEPLANDE ACTIVITEIT"},null,null,null,null,null,null,null,null,null,null,null,null,1,20,0.01]
[null,null,{"$f":"INPUT!#REF!","v":{"$error":"#REF!"}},{"$f":"INPUT!C87","v":"Met welk type vrachtvervoer worden goederen hoofdzakelijk aan- en afgevoerd?"},{"$f":"INPUT!D87","v":"belangrijk"},{"$f":"INPUT!E87","v":"kies"},null,{"$f":"VLOOKUP(F60,Range_vlookup,3,FALSE)","v":0},{"$f":"IF(H60=\"x\",\"x\",VLOOKUP(E60,Range_vlookup,3,FALSE))","v":1},{"$f":"IF(H60=\"x\",\"x\",H60*I60)","v":0},null,null,null,null,2,20,{"$f":"Q63-Q59-Q58","v":0.99}]
[null,null,{"$f":"INPUT!#REF!","v":{"$error":"#REF!"}},{"$f":"INPUT!C88","v":"Hoeveel vrachtbewegingen zijn er binnen de courante werkuren (van 9 tot 16 uur)?"},{"$f":"INPUT!D88","v":"belangrijk"},{"$f":"INPUT!E88","v":"kies"},null,0,1,0,null,null,null,null,3,20,0]
[null,null,{"$f":"INPUT!#REF!","v":{"$error":"#REF!"}},{"$f":"INPUT!C89","v":"Hoeveel vrachtbewegingen zijn er 's morgens en 's avonds (van 6 tot 9 en van 16 tot 20 uur, samengeteld)?"},{"$f":"INPUT!D89","v":"belangrijk"},{"$f":"INPUT!E89","v":"kies"},null,0,1,0,null,null,null,null,4,20,0]
[null,null,{"$f":"INPUT!#REF!","v":{"$error":"#REF!"}},{"$f":"INPUT!C90","v":"Hoeveel vrachtbewegingen zijn er 's nachts (van 20 tot 6 uur)"},{"$f":"INPUT!D90","v":"belangrijk"},{"$f":"INPUT!E90","v":"kies"},null,0,1,0,null,null,null,null,5,100,1]
[null,null,{"$f":"INPUT!#REF!","v":{"$error":"#REF!"}},{"$f":"INPUT!C91","v":"In welke mate zijn de vrachtbewegingen gespreid in tijd?"},{"$f":"INPUT!D91","v":"belangrijk"},{"$f":"INPUT!E91","v":"kies"},null,0,1,0]
[null,null,{"$f":"INPUT!#REF!","v":{"$error":"#REF!"}},{"$f":"INPUT!C92","v":"Waar gebeurt het laden en lossen?"},{"$f":"INPUT!D92","v":"belangrijk"},{"$f":"INPUT!E92","v":"kies"},null,0,1,0]
[null,null,{"$f":"INPUT!#REF!","v":{"$error":"#REF!"}},{"$f":"INPUT!C93","v":"Wanneer gebeurt het laden en lossen?"},{"$f":"INPUT!D93","v":"belangrijk"},{"$f":"INPUT!E93","v":"kies"},null,0,1,0]
[null,null,{"$f":"INPUT!#REF!","v":{"$error":"#REF!"}},{"$f":"INPUT!C94","v":"Zullen de medewerkers op het eigen bedrijfsterrein kunnen parkeren?"},{"$f":"INPUT!D94","v":"belangrijk"},{"$f":"INPUT!E94","v":"kies"},null,0,1,0]
[null,null,{"$f":"INPUT!#REF!","v":{"$error":"#REF!"}},{"$f":"INPUT!C95","v":"Wordt er bij de geplande activiteiten in shifts gewerkt?"},{"$f":"INPUT!D95","v":"belangrijk"},{"$f":"INPUT!E95","v":"kies"},null,0,1,0]
[null,null,{"$f":"INPUT!#REF!","v":{"$error":"#REF!"}},{"$f":"INPUT!C96","v":"Hoeveel bezoekers ontvangt heb bedrijf?"},{"$f":"INPUT!D96","v":"belangrijk"},{"$f":"INPUT!E96","v":"kies"},null,0,1,0]
[null,null,null,null,null,null,null,{"$f":"SUM(H57:H69)","v":0},{"$f":"SUM(I57:I69)","v":12},{"$f":"SUM(J57:J69)","v":0}]

{"sheet":"LISTS","index":6,"n_rows":291,"n_cols":5,"rows_kept":291,"cut":false,"hidden":true,"merged":[]}
["R01 - kwestsbare functies"]
["kies",null,0]
["neen, er zijn geen kwestbare functies",null,0,null,"In een straal van 200 meter rond de site zijn er geen kwetsbare functies"]
["ja, er zijn kwetsbare functies",null,5,null,"In een straal van 200 meter zijn er kwetsbare functies"]
["antwoord onbekend",null,"x",null,"Het is niet bekend of er in een straat van 200 meter kwetsbare functies zijn"]
["R02 - bestemming"]
["kies",null,0]
["industriegebied (paars)",null,0,null,"De site heeft als stedenbouwkundige bestemming \"industriegebied\""]
["woongebied (rood)",null,5,null,"De site heeft als stedenbouwkundige bestemming \"woongebied\""]
["andere",null,5,null,"De site heeft een andere stedenbouwkundige bestemming dan \"industriegebied\" of \"woongebied\""]
["R03 - stad of gemeente"]
["kies"]
["stad"]
["gemeente"]
["R04a - type buurt in stad"]
["kies",null,0]
["gemengd weefsel langs invalsweg",null,0,null,"De site ligt in het gemengde weefsel langs een invalsweg"]
["19de eeuwse stadsrand",null,2.5,null,"De site ligt in de 19de eeuwse stadsrand"]
["groene / residentiële rand van de stad",null,2.5,null,"De site ligt in de groene en residentiële rand van de stad"]
["historische binnenstad",null,5,null,"De site ligt in de historische binnenstad"]
["R04b - type buurt in gemeente"]
["kies",null,0]
["gemengd weefsel langs invalsweg",null,0,null,"De site ligt in het gemengde weefsel langs een invalsweg"]
["groene / residentiële rand van de gemeente",null,2.5,null,"De site ligt in de groene en residentiële rand van de gemeente"]
["centrum",null,5,null,"De site ligt in het centrum van de gemeente"]
["R05 - oppervlakte"]
["kies",null,0]
["< 250 m²",null,0,null,"De site is kleiner dan 250 m²"]
["< 500 m²",null,{"$f":"5/6","v":0.83333333333333337},null,"De site is kleiner dan 500 m²"]
["< 1000 m²",null,{"$f":"C29+5/6","v":1.6666666666666667},null,"De site is kleiner dan 1000 m²"]
["< 2000 m²",null,{"$f":"C30+5/6","v":2.5},null,"De site is kleiner dan 2000 m²"]
["< 5000 m²",null,{"$f":"C31+5/6","v":3.3333333333333335},null,"De site is kleiner dan 5000 m²"]
["< 10.000 m²",null,{"$f":"C32+5/6","v":4.166666666666667},null,"De site is kleiner dan 10.000 m²"]
["> 10.000 m²",null,{"$f":"C33+5/6","v":5},null,"De site is groter dan 10.000 m²"]
["R06 - bebouwingsgraad"]
["kies"]
["circa 0 procent",null,null,null,"De site is niet bebouwd"]
["circa 25 procent",null,null,null,"De site is voor ongeveer 25 procent bebouwd"]
["circa 50 procent",null,null,null,"De site is voor ongeveer de helft bebouwd"]
["circa 75 procent",null,null,null,"De site is voor ongeveer 75 procent bebouwd"]
["circa 100 procent",null,null,null,"De site is volledig bebouwd"]
["antwoord onbekend",null,null,null,"De bebouwingsgraad van de site is niet bekend"]
["R07 - aanwezigheid erfgoed"]
["kies"]
["ja, er is erfgoed aanwezig",null,null,null,"Op de site is er onroerend erfgoed aanwezig"]
["neen, er is geen erfgoed aanwezig",null,null,null,"Op de site is er geen onroerend erfgoed aanwezig"]
["antwoord onbekend",null,null,null,"Het is niet bekend of er op de site onroerend erfgoed aanwezig is"]
["R08 - staat van de site"]
["kies"]
["de site is nieuw en niet verwaarloosd",null,null,null,"De site is nieuw en niet verwaarloosd"]
["de site is nieuw maar verwaarloosd",null,null,null,"De site is nieuw maar wel verwaarloosd"]
["de site is verouderd maar niet verwaarloosd",null,null,null,"De site is verouderd maar niet verwaarloosd"]
["de site is verouderd en verwaarloosd",null,null,null,"De site is verouderd en ook verwaarloosd"]
["antwoord onbekend",null,null,null,"Het is niet bekend in welke mate de site verouderd en/of verwaarloosd is"]
["R09 - buffering"]
["kies",null,0]
["ja, volledig",null,0,null,"De site biedt voldoende ruimte om te bufferen"]
["ja, gedeeltelijk",null,2.5,null,"De site biedt gedeeltelijke ruimte om te bufferen"]
["neen, geen buffering op eigen terrein mogelijk",null,5,null,"De site biedt geen mogelijkheden om te bufferen"]
["antwoord onbekend",null,"x",null,"Het is niet bekend of de site mogelijkheden biedt om te bufferen"]
["R10 - visuele impact"]
["kies",null,0]
["het geplande project heeft een positieve visuele impact",null,0,null,"Het geplande project heeft een positieve visuele impact"]
["het geplande project heeft een neutrale visuele impact",null,2.5,null,"Het geplande project heeft een neutrale visuele impact"]
["het geplande project heeft een negatieve visuele impact",null,5,null,"Het geplande project heeft een negatieve visuele impact"]
["antwoord onbekend",null,"x",null,"Het is niet bekend welke de visuele impact zal zijn van het geplande project"]
["R11 - inrichtingsplannen"]
["kies",null,0]
["de site blijft ongewijzigd",null,{"$f":"IF(OR(INPUT!$E$40=$A$49,INPUT!$E$40=$A$51,INPUT!$E$40=$A$53),5,0)","v":5},null,"De inrichting van de site blijft ongewijzigd"]
["de site wordt opgefrist",null,{"$f":"IF(OR(INPUT!$E$40=$A$49,INPUT!$E$40=$A$51,INPUT!$E$40=$A$53),2.5,0)","v":2.5},null,"De site wordt opgefrist"]
["de site wordt volledig vernieuwd",null,{"$f":"IF(OR(INPUT!$E$40=$A$49,INPUT!$E$40=$A$51,INPUT!$E$40=$A$53),0,5)","v":0},null,"De site wordt volledig vernieuwd"]
["antwoord onbekend",null,"x",null,"Het is niet bekend of er vernieuwingswerken op de site zullen worden uitgevoerd"]
["R12 - opslag"]
["kies",null,0]
["het geplande project vereist geen opslag in open lucht",null,0,null,"Het geplande project vereist geen opslag in open lucht"]
["het geplande project vereist opslag in open lucht",null,5,null,"Het geplande project vereist opslag in open lucht"]
["antwoord onbekend",null,"x",null,"Het is niet bekend of het project opslag in open lucht vereist"]
["R13 - behoud erfgoed"]
["kies",null,0]
["het bouwkundig erfgoed kan behouden worden",null,0,null,"Het bouwkundig erfgoed kan behouden worden"]
["het bouwkundig erfgoed moet worden aangetast",null,2.5,null,"Het bouwkundig erfgoed moet worden aangetast"]
["het bouwkundig erfgoed moet verdwijnen",null,5,null,"Het bouwkundig erfgoed moet verdwijnen"]
["antwoord onbekend",null,"x",null,"Het is niet bekend in welke mate het onroerend erfgoed wordt behouden"]
[]
["S01 - uitstraling"]
["kies",null,0]
["het bedrijf draagt bij tot de uitstraling van de gemeente",null,0]
["het bedrijf draagt beperkt bij tot de uitstraling van de gemeente",null,2.5]
["het bedrijf draagt niet bij tot de uitstraling van de gemeente",null,5]
["antwoord onbekend",null,"x"]
["S02 - publieksfunctie"]
["kies",null,0]
["de activiteiten hebben een publieksfunctie",null,0]
["de activiteiten hebben geen publieksfunctie",null,5]
["antwoord onbekend",null,"x"]
["S03 - collectief gebruik"]
["kies",null,0]
["dit is mogelijk en bespreekbaar",null,0]
["dit is niet mogelijk",null,0]
["dit is mogelijk maar niet bespreekbaar",null,5]
["antwoord onbekend",null,"x"]
["S04 - bewoning op de site"]
["ja, op de site zal er iemand wonen",null,0]
["neen, op de site zal er niemand wonen",null,5]
["antwoord onbekend",null,"x"]
[]
["E01 - sector"]
["kies"]
["industrie"]
["ambachten"]
["handel"]
["diensten"]
["bouwnijverheid"]
["E02 - doelgroep"]
["kies"]
["B2B"]
["B2C"]
["E03 - cluster"]
["ja, de activiteiten maken deel uit van een regionale cluster",null,0]
["neen, de activiteiten maken geen deel uit van een regionale cluster",null,5]
["antwoord onbekend",null,"x"]
["E04/E05 - afhankelijkheid klanten en leveranciers"]
["kies",null,0]
["volledig",null,0]
["overwegend",null,{"$f":"5/3*1","v":1.6666666666666667}]
["in mindere mate",null,{"$f":"5/3*2","v":3.3333333333333335}]
["niet",null,5]
["antwoord onbekend",null,"x"]
["E06 - geplande investeringen"]
["kies",null,0]
["de investering is aanzienlijk",null,0]
["de investering is beperkt",null,5]
["antwoord onbekend",null,"x"]
["E07 - huidige vestiging"]
["kies"]
["in dezelfde gemeente"]
["in dezelfde regio"]
["buiten de regio"]
["E08 - tewerkstelling"]
["kies",null,0]
[{"$f":"IF(INPUT!$E$57=$A$109,\"Minder dan 15 medewerkers\",IF(INPUT!$E$57=$A$113,\"Minder dan 3 medewerkers\",\"Minder dan 4 medewerkers\"))","v":"Minder dan 4 medewerkers"},null,5]
[{"$f":"IF(INPUT!$E$57=$A$109,\"Meer dan 15 medewerkers\",IF(INPUT!$E$57=$A$113,\"Meer dan 3 medewerkers\",\"Meer dan 4 medewerkers\"))","v":"Meer dan 4 medewerkers"},null,0]
["antwoord onbekend",null,"x"]
["E09 - groeimarge"]
["kies",null,0]
["meer dan 100 procent",null,0]
["75 tot 100 procent",null,{"$f":"C150/4","v":1.25}]
["50 tot 75 procent",null,{"$f":"C150/4*2","v":2.5}]
["25 tot 50 procent",null,{"$f":"5/4*3","v":3.75}]
["minder dan 25 procent",null,5]
["antwoord onbekend",null,"x"]
["E10 - belastingen"]
["kies",null,0]
["bovengemiddeld",null,{"$f":"5/3*1","v":1.6666666666666667}]
["gemiddeld",null,{"$f":"5/3*2","v":3.3333333333333335}]
["lager dan gemiddeld",null,5]
["antwoord onbekend",null,"x"]
["E11 - gemeentelijke investeringen"]
["kies",null,0]
["er zijn geen investeringen door de gemeente vereist",null,1]
["er zijn minimale investeringen door de gemeente vereist",null,2]
["er zijn aanzienlijke investeringen door de gemeente vereist",null,5]
["antwoord onbekend",null,"x"]
["E12 - slijtage"]
["kies",null,0]
["nihil",null,0]
["gering",null,{"$f":"5/3","v":1.6666666666666667}]
["matig",null,{"$f":"5/3*2","v":3.3333333333333335}]
["groot",null,5]
["antwoord onbekend",null,"x"]
[]
["L01 - milieuvergunning"]
["kies",null,0]
["geen meldingsplicht of milieuvergunning",null,0]
["een meldingsplicht klasse 3",null,{"$f":"5/3","v":1.6666666666666667}]
["een milieuvergunning klasse 2",null,{"$f":"5/3*2","v":3.3333333333333335}]
["een milieuvergunning klasse 1",null,5]
["antwoord onbekend",null,"x"]
["L02 - gevaarlijke stoffen"]
["kies",null,0]
["neen, de geplande activiteiten vereisen geen gevaarlijke stoffen",null,0]
["ja, de geplande activiteiten vereisen gevaarlijke stoffen",null,5]
["antwoord onbekend",null,"x"]
["L03 - luchtverontreiniging"]
["kies",null,0]
["geen luchtverontreiniging",null,0]
["beperkte luchtverontreiniging",null,2.5]
["aanzienlijke luchtverontreiniging",null,5]
["antwoord onbekend",null,"x"]
["L04 - stofhinder"]
["kies",null,0]
["geen stofhinder",null,0]
["beperkte stofhinder",null,2.5]
["aanzienlijke stofhinder",null,5]
["antwoord onbekend",null,"x"]
["L05 - geurhinder"]
["kies",null,0]
["geen geurhinder",null,0]
["beperkte geurhinder",null,2.5]
["aanzienlijke geurhinder",null,5]
["antwoord onbekend",null,"x"]
["L05 - lichthinder"]
["kies",null,0]
["geen lichthinder",null,0]
["beperkte lichthinder",null,2.5]
["aanzienlijke lichthinder",null,5]
["antwoord onbekend",null,"x"]
["L07 - geluisoverlast"]
["kies",null,0]
["geen geluidsoverlast",null,0]
["beperkte geluidsoverlast",null,2.5]
["aanzienlijke geluidsoverlast",null,5]
["antwoord onbekend",null,"x"]
["L08 - trillingen"]
["kies",null,0]
["geen trillingen",null,0]
["beperkte trilling",null,2.5]
["aanzienlijke trilling",null,5]
["antwoord onbekend",null,"x"]
["L09 - verharding"]
["neen, de geplande activiteiten vereisen evenveel of minder verharde oppervlakte",null,0]
["ja, de geplande activiteiten vereisen meer verharde oppervlakte",null,5]
["antwoord onbekend",null,"x"]
[]
["M01 - wegennet"]
["kies",null,0]
["aan het hogere wegennet",null,0]
["op minder dan 0,5 km van het hogere wegennet",null,{"$f":"C231/4","v":1.25}]
["op minder dan 1 km van het hogere wegennet",null,{"$f":"C231/4*2","v":2.5}]
["op minder dan 5 km van het hogere wegennet",null,{"$f":"5/4*3","v":3.75}]
["op méér dan 5 km van het hogere wegennet",null,5]
["M02 - ontsluitingstraject"]
["kies",null,0]
["goed",null,0]
["matig",null,2.5]
["slecht",null,5]
["antwoord onbekend",null,"x"]
["M03 - vrachtverkeer"]
["kies",null,0]
["met lichte vrachtauto's (-3,5 ton)",null,0]
["met eendelige vrachtauto's",null,2.5]
["met tweedelige vrachtauto's (trekker en aanhanger)",null,5]
["antwoord onbekend",null,"x"]
["M04/M05/M06 - aantal vrachtbewegingen"]
["kies",null,0]
["quasi geen vrachtbewegingen",null,0]
["gemiddeld minder dan 4 vrachtbewegingen",null,{"$f":"C249/3*1","v":1.6666666666666667}]
["gemiddeld minder dan 10 vrachtbewingen",null,{"$f":"5/3*2","v":3.3333333333333335}]
["gemiddeld méér dan 10 vrachtbewegingen",null,5]
["antwoord onbekend",null,"x"]
["M07 - concentratie"]
["kies",null,0]
["verlopen hoofdzakelijk gespreid",null,0]
["verlopen hoofdzakelijk geconcentreerd",null,5]
["antwoord onbekend",null,"x"]
["M08 - waar laden en lossen"]
["kies",null,0]
["op privaat domein, binnen afgesloten gebouw",null,0]
["op privaat domein, in dock shelter",null,{"$f":"C261/3*1","v":1.6666666666666667}]
["op privaat domein, in open lucht",null,{"$f":"5/3*2","v":3.3333333333333335}]
["op openbaar domein",null,5]
["antwoord onbekend",null,"x"]
["M09 - wanneer laden en lossen"]
["kies",null,0]
["uitsluitend binnen de courante werkuren",null,0]
["hoofdzakelijk binnen de courante werkuren",null,{"$f":"C268/3*1","v":1.6666666666666667}]
["uitsluitend buiten de courante werkuren, hoofdzakelijk 's morgens en 's avonds",null,{"$f":"5/3*2","v":3.3333333333333335}]
["uitsluitend buiten de courante werkuren, hoofdzakelijk 's nachts",null,5]
["antwoord onbekend",null,"x"]
["M10 - parkeren"]
["kies",null,0]
["ja, alle medewerkers en bezoekers zullen op eigen terrein kunnen parkeren",null,0]
["neen, niet alle medewerkers en bezoekers zullen op eigen terrein kunnen parkeren",null,5]
["antwoord onbekend",null,"x"]
["M11 - shifts"]
["kies",null,0]
["neen, er zal niet in shifts worden gewerkt",null,0]
["ja, er zal in shifts worden gewerkt",null,5]
["antwoord onbekend",null,"x"]
["M12 - aantal bezoekers"]
["kies",null,0]
["geen bezoekers",null,0]
["een beperkt aantal bezoekers",null,2.5]
["tientallen bezoekers",null,5]
["antwoord onbekend",null,"x"]
[]
["belang"]
["kies",null,0]
["weinig belangrijk",null,0.5]
["belangrijk",null,1]
["zeer belangrijk",null,2]

{"sheet":"Sheet1","index":7,"n_rows":17,"n_cols":3,"rows_kept":17,"cut":false,"hidden":true,"merged":[]}
[null,null,"RUIMTELIJKE KENMERKEN"]
[null,null,{"$f":"INPUT!$E$21","v":0}]
[]
[]
[]
[null,{"$f":"VLOOKUP(INPUT!E33,Range_vlookup,3,FALSE)","v":0},{"$f":"VLOOKUP(INPUT!E33,Range_vlookup,5,FALSE)","v":0}]
[null,{"$f":"VLOOKUP(INPUT!E34,Range_vlookup,3,FALSE)","v":0},{"$f":"VLOOKUP(INPUT!E34,Range_vlookup,5,FALSE)","v":0}]
[null,{"$f":"VLOOKUP(INPUT!E36,Range_vlookup,3,FALSE)","v":0},{"$f":"VLOOKUP(INPUT!E36,Range_vlookup,5,FALSE)","v":0}]
[null,{"$f":"VLOOKUP(INPUT!E37,Range_vlookup,3,FALSE)","v":0},{"$f":"VLOOKUP(INPUT!E37,Range_vlookup,5,FALSE)","v":0}]
[null,null,{"$f":"VLOOKUP(INPUT!E38,Range_vlookup,5,FALSE)","v":0}]
[null,null,{"$f":"VLOOKUP(INPUT!E40,Range_vlookup,5,FALSE)","v":0}]
[null,{"$f":"VLOOKUP(INPUT!E44,Range_vlookup,3,FALSE)","v":0},{"$f":"VLOOKUP(INPUT!E44,Range_vlookup,5,FALSE)","v":0}]
[null,{"$f":"VLOOKUP(INPUT!E43,Range_vlookup,3,FALSE)","v":0},{"$f":"VLOOKUP(INPUT!E43,Range_vlookup,5,FALSE)","v":0}]
[null,null,{"$f":"VLOOKUP(INPUT!E39,Range_vlookup,5,FALSE)","v":0}]
[null,{"$f":"VLOOKUP(INPUT!E46,Range_vlookup,3,FALSE)","v":0},{"$f":"VLOOKUP(INPUT!E46,Range_vlookup,5,FALSE)","v":0}]
[null,{"$f":"VLOOKUP(INPUT!E41,Range_vlookup,3,FALSE)","v":0},{"$f":"VLOOKUP(INPUT!E41,Range_vlookup,5,FALSE)","v":0}]
[null,{"$f":"VLOOKUP(INPUT!E45,Range_vlookup,3,FALSE)","v":0},{"$f":"VLOOKUP(INPUT!E45,Range_vlookup,5,FALSE)","v":0}]

{"sheet":"RESULTAAT","index":8,"n_rows":23,"n_cols":10,"rows_kept":23,"cut":false,"hidden":false,"merged":[]}
[]
[]
[]
[]
[]
[]
[]
[]
[]
[null,null,null,{"$f":"IF(INPUT!E21=0,\"\",INPUT!E21)","v":""}]
[]
[]
[null,null,null,null,null,null,null,null,null,{"$f":"TODAY()","v":"2016-09-21"}]
[]
[null,{"$f":"INPUT!B16 &\" \" &INPUT!B20","v":"BASISGEGEVENS VAN DE LOCATIE"},null,null,null,null,null,{"$f":"INPUT!B16 &\" \" &INPUT!B24","v":"BASISGEGEVENS VAN DE GEÏNTERESSEERDE PARTIJ"}]
[null,{"$f":"INPUT!C21","v":"Naam"},null,{"$f":"IF(INPUT!E21=0,\"\",INPUT!E21)","v":""},null,null,null,{"$f":"INPUT!C25","v":"Naam"},null,{"$f":"IF(INPUT!E25=0,\"\",INPUT!E25)","v":""}]
[null,{"$f":"INPUT!C22","v":"Adres"},null,{"$f":"IF(INPUT!E22=0,\"\",INPUT!E22)","v":""},null,null,null,{"$f":"INPUT!C26","v":"Adres"},null,{"$f":"IF(INPUT!E26=0,\"\",INPUT!E26)","v":""}]
[null,{"$f":"INPUT!C23","v":"Huidige eigenaar"},null,{"$f":"IF(INPUT!E23=0,\"\",INPUT!E23)","v":""},null,null,null,{"$f":"INPUT!C27","v":"Contactpersoon"},null,{"$f":"IF(INPUT!E27=0,\"\",INPUT!E27)","v":""}]
[null,null,null,null,null,null,null,{"$f":"INPUT!C28","v":"Telefoon"},null,{"$f":"IF(INPUT!E28=0,\"\",INPUT!E28)","v":""}]
[null,null,null,null,null,null,null,{"$f":"INPUT!C29","v":"Email"},null,{"$f":"IF(INPUT!E29=0,\"\",INPUT!E29)","v":""}]
[]
[]
[null,"RUIMTELIJK KENMERKEN",null,"SOCIALE KENMERKEN",null,"ECONOMISCHE KENMERKEN",null,"KENMERKEN LEEFMILIEU",null,"MOBILITEITSKENMERKEN"]